Department Family,Entity,Date,Expense Type,Expense Area,Supplier,Transaction Number,Amount,Description,Supplier Postcode,Supplier Type,Expenditure Type
DWP,ILF,16/05/2013,Other Prepayments,Central,Government Knowledge,138183,504.00,Training Event,WC2N 5BW,,Administrative
DWP,ILF,31/05/2013,Software Licensing,Human Resources,Ceridian Ltd,138509,508.37,Payroll and HR services, E14 9GE,,Administrative
DWP,ILF,16/05/2013,Stakeholder Engagement,Corporate Affairs,User Expenses,138155,510.35,"Travel, Subsitence or general expenses incurred by users in attending ILF business",0,,Administrative
DWP,ILF,02/05/2013,Website Services,Information & Governance,Node4,137808,540.00,Website services, DE24 8HZ,,Administrative
DWP,ILF,02/05/2013,Stakeholder Engagement,Corporate Affairs,Scope Central Training Ltd,137868,562.88,Room Hire & Catering, N7 9PW,,Administrative
DWP,ILF,13/05/2013,Other Training Costs,Human Resources,Redfern Travel Ltd,138039,564.81,Travel and Accomodation bookings,BD1 3AZ,,Administrative
DWP,ILF,07/05/2013,Independent Assessor visits,Social Work,Independent Assessor Costs,137902,577.50,Assessment of social care needs and recommendation of ILF funding contribution,0,,Programme
DWP,ILF,20/05/2013,Additional Facilities,Facilities,Eyres Ltd,138212,585.00,Facilities Maintenance,DE 72 2HH,,Administrative
DWP,ILF,20/05/2013,Misc IT Costs,Information & Governance,XMA Ltd,138240,587.71,Printer Toner Cartidges,NG11 7EP,,Administrative
DWP,ILF,14/05/2013,Independent Assessor visits,Social Work,Independent Assessor Costs,138065,595.95,Assessment of social care needs and recommendation of ILF funding contribution,0,,Programme
DWP,ILF,30/05/2013,Legal Costs,Payment Security,Maclay Murray & Spens Solicitors,138476,600.00,Provision of Legal Service iro debt recovery, G2 5NL,,Administrative
DWP,ILF,28/05/2013,Independent Assessor visits,Social Work,Independent Assessor Costs,138371,608.30,Assessment of social care needs and recommendation of ILF funding contribution,0,,Programme
DWP,ILF,13/05/2013,General T&S ,Corporate Affairs,Redfern Travel Ltd,138039,611.68,Travel and Accomodation bookings,BD1 3AZ,,Administrative
DWP,ILF,02/05/2013,Legal Costs,Human Resources,Harvey Ingram LLP Solicitors,137869,612.00,"Provision of Legal Service iro debt recovery, human resource, procurement or organisational litigation",LE1 6TX,,Administrative
DWP,ILF,07/05/2013,Independent Assessor visits,Social Work,Independent Assessor Costs,137947,641.40,Assessment of social care needs and recommendation of ILF funding contribution,0,,Programme
DWP,ILF,22/05/2013,FE Assistance,Human Resources,ACORN Training Consultants Ltd,138268,650.00,Training Provider for NVQs pursued by staff,DE5 3DJ,,Administrative
DWP,ILF,14/05/2013,Independent Assessor visits,Social Work,Independent Assessor Costs,138068,675.90,Assessment of social care needs and recommendation of ILF funding contribution,0,,Programme
DWP,ILF,20/05/2013,Independent Assessor visits,Social Work,Independent Assessor Costs,138223,710.10,Assessment of social care needs and recommendation of ILF funding contribution,0,,Programme
DWP,ILF,14/05/2013,Independent Assessor visits,Social Work,Independent Assessor Costs,138061,715.95,Assessment of social care needs and recommendation of ILF funding contribution,0,,Programme
DWP,ILF,09/05/2013,Legal Costs,Corporate Affairs,Harvey Ingram LLP Solicitors,138015,728.64,"Provision of Legal Service iro debt recovery, human resource, procurement or organisational litigation",LE1 6TX,,Administrative
DWP,ILF,14/05/2013,Independent Assessor visits,Social Work,Independent Assessor Costs,138085,731.25,Assessment of social care needs and recommendation of ILF funding contribution,0,,Programme
DWP,ILF,07/05/2013,Independent Assessor visits,Social Work,Independent Assessor Costs,137916,748.80,Assessment of social care needs and recommendation of ILF funding contribution,0,,Programme
DWP,ILF,20/05/2013,Independent Assessor visits,Social Work,Independent Assessor Costs,138214,755.85,Assessment of social care needs and recommendation of ILF funding contribution,0,,Programme
DWP,ILF,13/05/2013,Other Independent Assessor Claims,Social Work,Redfern Travel Ltd,138039,756.68,Travel and Accomodation bookings,BD1 3AZ,,Administrative
DWP,ILF,16/05/2013,Stakeholder Engagement,Corporate Affairs,User Expenses,138156,806.22,"Travel, Subsitence or general expenses incurred by users in attending ILF business",0,,Administrative
DWP,ILF,09/05/2013,Legal Costs,Corporate Affairs,Harvey Ingram LLP Solicitors,138014,806.76,"Provision of Legal Service iro debt recovery, human resource, procurement or organisational litigation",LE1 6TX,,Administrative
DWP,ILF,07/05/2013,Phone Charges,Facilities,BT Conferencing,137945,823.18,Telephone conference calls, NW9 6LB,,Administrative
DWP,ILF,07/05/2013,Independent Assessor visits,Social Work,Independent Assessor Costs,137913,845.80,Assessment of social care needs and recommendation of ILF funding contribution,0,,Programme
DWP,ILF,07/05/2013,Independent Assessor visits,Social Work,Independent Assessor Costs,137907,867.00,Assessment of social care needs and recommendation of ILF funding contribution,0,,Programme
DWP,ILF,28/05/2013,Independent Assessor visits,Social Work,Independent Assessor Costs,138370,867.35,Assessment of social care needs and recommendation of ILF funding contribution,0,,Programme
DWP,ILF,20/05/2013,Independent Assessor visits,Social Work,Independent Assessor Costs,138224,898.05,Assessment of social care needs and recommendation of ILF funding contribution,0,,Programme
DWP,ILF,07/05/2013,Independent Assessor visits,Social Work,Independent Assessor Costs,137898,921.30,Assessment of social care needs and recommendation of ILF funding contribution,0,,Programme
DWP,ILF,20/05/2013,Independent Assessor visits,Social Work,Independent Assessor Costs,138225,927.30,Assessment of social care needs and recommendation of ILF funding contribution,0,,Programme
DWP,ILF,14/05/2013,Independent Assessor visits,Social Work,Independent Assessor Costs,138064,941.55,Assessment of social care needs and recommendation of ILF funding contribution,0,,Programme
DWP,ILF,28/05/2013,Independent Assessor visits,Social Work,Independent Assessor Costs,138376,959.85,Assessment of social care needs and recommendation of ILF funding contribution,0,,Programme
DWP,ILF,28/05/2013,Independent Assessor visits,Social Work,Independent Assessor Costs,138366,975.85,Assessment of social care needs and recommendation of ILF funding contribution,0,,Programme
DWP,ILF,15/05/2013,Business Continuity,Information & Governance,Hewlett Packard,138120,986.40,IT software and support,BD23 9AX,,Administrative
DWP,ILF,07/05/2013,Independent Assessor visits,Social Work,Independent Assessor Costs,137917,988.05,Assessment of social care needs and recommendation of ILF funding contribution,0,,Programme
DWP,ILF,02/05/2013,Legal Costs,Corporate Affairs,Harvey Ingram LLP Solicitors,137870,"1,020.00","Provision of Legal Service iro debt recovery, human resource, procurement or organisational litigation",LE1 6TX,,Administrative
DWP,ILF,07/05/2013,Independent Assessor visits,Social Work,Independent Assessor Costs,137901,"1,035.15",Assessment of social care needs and recommendation of ILF funding contribution,0,,Programme
DWP,ILF,14/05/2013,Independent Assessor visits,Social Work,Independent Assessor Costs,138069,"1,073.42",Assessment of social care needs and recommendation of ILF funding contribution,0,,Programme
DWP,ILF,13/05/2013,Software Licensing,Human Resources,Ceridian Ltd,138035,"1,080.00",Payroll and HR services, E14 9GE,,Administrative
DWP,ILF,14/05/2013,Independent Assessor visits,Social Work,Independent Assessor Costs,138067,"1,081.65",Assessment of social care needs and recommendation of ILF funding contribution,0,,Programme
DWP,ILF,20/05/2013,Additional Facilities,Facilities,Nottingham City Council,138204,"1,102.20",Rates , NG1 2DE,,Administrative
DWP,ILF,07/05/2013,Independent Assessor visits,Social Work,Independent Assessor Costs,137920,"1,104.15",Assessment of social care needs and recommendation of ILF funding contribution,0,,Programme
DWP,ILF,09/05/2013,Legal Costs,Payment Security,Harvey Ingram LLP Solicitors,138017,"1,159.20","Provision of Legal Service iro debt recovery, human resource, procurement or organisational litigation",LE1 6TX,,Administrative
DWP,ILF,20/05/2013,Independent Assessor visits,Social Work,Independent Assessor Costs,138221,"1,278.60",Assessment of social care needs and recommendation of ILF funding contribution,0,,Programme
DWP,ILF,07/05/2013,Independent Assessor visits,Social Work,Independent Assessor Costs,137912,"1,310.70",Assessment of social care needs and recommendation of ILF funding contribution,0,,Programme
DWP,ILF,09/05/2013,Legal Costs,Payment Security,Harvey Ingram LLP Solicitors,138018,"1,317.24","Provision of Legal Service iro debt recovery, human resource, procurement or organisational litigation",LE1 6TX,,Administrative
DWP,ILF,14/05/2013,Independent Assessor visits,Social Work,Independent Assessor Costs,138073,"1,377.60",Assessment of social care needs and recommendation of ILF funding contribution,0,,Programme
DWP,ILF,28/05/2013,Independent Assessor visits,Social Work,Independent Assessor Costs,138367,"1,386.75",Assessment of social care needs and recommendation of ILF funding contribution,0,,Programme
DWP,ILF,28/05/2013,Independent Assessor visits,Social Work,Independent Assessor Costs,138374,"1,394.10",Assessment of social care needs and recommendation of ILF funding contribution,0,,Programme
DWP,ILF,13/05/2013,Rent & Facilities Lease,Facilities,Land Securities Trillium,138037,"1,397.63","Building lease,maintenance and utilities", LS11 9DX,,Administrative
DWP,ILF,22/05/2013,Rent & Facilities Lease,Facilities,Land Securities Trillium,138267,"1,397.63","Building lease,maintenance and utilities", LS11 9DX,,Administrative
DWP,ILF,14/05/2013,Independent Assessor visits,Social Work,Independent Assessor Costs,138062,"1,406.25",Assessment of social care needs and recommendation of ILF funding contribution,0,,Programme
DWP,ILF,07/05/2013,Independent Assessor visits,Social Work,Independent Assessor Costs,137903,"1,409.40",Assessment of social care needs and recommendation of ILF funding contribution,0,,Programme
DWP,ILF,02/05/2013,Business Continuity,Information & Governance,Node4,137808,"1,410.00",Website services, DE24 8HZ,,Administrative
DWP,ILF,16/05/2013,Stakeholder Engagement,Corporate Affairs,Calders,138184,"1,510.73",Hotel bookings,LS16 6RF,,Administrative
DWP,ILF,14/05/2013,Independent Assessor visits,Social Work,Independent Assessor Costs,138058,"1,541.15",Assessment of social care needs and recommendation of ILF funding contribution,0,,Programme
DWP,ILF,13/05/2013,Software Licensing,Human Resources,Ceridian Ltd,138034,"1,592.03",Payroll and HR services, E14 9GE,,Administrative
DWP,ILF,20/05/2013,Phone Charges,Facilities,BT PLC,138243,"1,604.05",Telephone service, NE82 6XX,,Administrative
DWP,ILF,07/05/2013,Independent Assessor visits,Social Work,Independent Assessor Costs,137919,"1,633.95",Assessment of social care needs and recommendation of ILF funding contribution,0,,Programme
DWP,ILF,14/05/2013,Independent Assessor visits,Social Work,Independent Assessor Costs,138074,"1,636.50",Assessment of social care needs and recommendation of ILF funding contribution,0,,Programme
DWP,ILF,14/05/2013,Independent Assessor visits,Social Work,Independent Assessor Costs,138063,"1,746.15",Assessment of social care needs and recommendation of ILF funding contribution,0,,Programme
DWP,ILF,20/05/2013,Independent Assessor visits,Social Work,Independent Assessor Costs,138215,"1,785.90",Assessment of social care needs and recommendation of ILF funding contribution,0,,Programme
DWP,ILF,22/05/2013,Other Prepayments,Central,Towergate Risk Solutions,138269,"1,870.50",Business insurance, NG2 1RR,,Administrative
DWP,ILF,29/05/2013,Independent Assessor visits,Social Work,Independent Assessor Costs,138429,"2,031.50",Assessment of social care needs and recommendation of ILF funding contribution,0,,Programme
DWP,ILF,14/05/2013,Other Prepayments,Central,Reed Business Info Ltd,138111,"2,295.60",advertisement fees, RH16 3DH,,Administrative
DWP,ILF,20/05/2013,Independent Assessor visits,Social Work,Independent Assessor Costs,138220,"2,391.75",Assessment of social care needs and recommendation of ILF funding contribution,0,,Programme
DWP,ILF,14/05/2013,Independent Assessor visits,Social Work,Independent Assessor Costs,138071,"2,561.05",Assessment of social care needs and recommendation of ILF funding contribution,0,,Programme
DWP,ILF,28/05/2013,Independent Assessor visits,Social Work,Independent Assessor Costs,138373,"2,875.90",Assessment of social care needs and recommendation of ILF funding contribution,0,,Programme
DWP,ILF,20/05/2013,Other Prepayments,Central,BT PLC,138243,"3,208.10",Telephone service, NE82 6XX,,Administrative
DWP,ILF,08/05/2013,Printing Services,Facilities,Williams Lea,137991,"3,389.05",Office Printing,W1F8PR,,Administrative
DWP,ILF,24/05/2013,Other Prepayments,Central,RSM Tenon,138345,"3,850.00",Annual Software Maintenance Support Fee,BL1 1ET,,Administrative
DWP,ILF,20/05/2013,Other Independent Assessor Claims,Social Work,Reed Business Info Ltd,138239,"3,879.60",advertisement fees, RH16 3DH,,Administrative
DWP,ILF,21/05/2013,HR Recruitment,Human Resources,4Social Work,138261,"5,847.00",HR Recruitment,0,,Programme
DWP,ILF,16/05/2013,Rates,Facilities,Nottingham City Council,138158,"6,947.00",Rates , NG1 2DE,,Administrative
DWP,ILF,22/05/2013,Postage,Facilities,Royal Mail,138313,"8,000.00",Postal services, PE4 5PG,,Administrative
DWP,ILF,02/05/2013,Bespoke Software (Cost),Central,Dynamic Data Systems Ltd,137809,"10,578.00",Bespoke software development, NG16 1RL,,Administrative
DWP,ILF,13/05/2013,Rent & Facilities Lease,Facilities,Land Securities Trillium,138038,"68,129.84","Building lease,maintenance and utilities", LS11 9DX,,Administrative
DWP,ILF,22/05/2013,Rent & Facilities Lease,Facilities,Land Securities Trillium,138266,"68,129.84","Building lease,maintenance and utilities", LS11 9DX,,Administrative
